[Event "SS Manhem Chess Week-IM 2018"]
[Site "Gothenburg"]
[Date "2018.08.16"]
[Round "8"]
[White "Nedilko, Vasily"]
[Black "Storme, Isak"]
[Result "1-0"]
[ECO "D30"]
[WhiteElo "2369"]
[BlackElo "2279"]
[Annotator "NA RC"]
[PlyCount "111"]
[EventDate "2018.08.11"]
[EventCountry "SWE"]
[SourceTitle "playchess.com"]
[Source "ChessBase"]
[SourceQuality "1"]
[TimeControl "40/5400+30:1800+30"]

{[%evp 15,104,30,18,18,26,17,30,12,28,15,20,10,14,14,41,0,32,25,73,71,32767,85,43,62,60,83,67,82,105,94,66,61,85,88,90,90,32767,32767,79,32767,32767,32767,85,32767,32767,32767,32767,32767,32767,32767,32767,32767,32767,32767,32767,32767,32767,32767,32767,32767,32767,32767,32767,356,381,32767,32767,32767,32767,32767,150,168,550,725,1092,406,352,32767,32767,149,32767,32767,32767,32767,32767,153,32767,32767,32767,32767,1693]} 1. d4 {[%emt 0:00:00]} Nf6 {[%emt 0:02:06]} 2. c4 {[%emt 0:00:00]} e6 {[%emt 0:00:04]} 3. Nf3 {[%emt 0:00:00]} d5 {[%emt 0:00:06]} 4. g3 {[%emt 0:00:01]} Bb4+ {[%emt 0:00:10]} 5. Bd2 {[%emt 0:00:07]} Bd6 {[%emt 0:00:06]} 6. Bg2 {[%emt 0:00:51]} O-O {[%emt 0:00:26]} 7. Qc2 {[%emt 0:00:22]} c6 {[%emt 0:04:34]} 8. O-O {[%emt 0:09:11] D30: Queen's Gambit Declined: Systems without Nc3} Ne4 {[%emt 0:00:57]} (8... Nbd7 9. Rd1 Ne4 10. Ne1 Nxd2 11. Nxd2 f5 12. Nd3 Nf6 {0-1 (42) Xiong,J (2634)-Caruana,F (2811) chess.com INT 2018}) 9. Nc3 {[%emt 0:05:14] LiveBook: 7 Games} Nxd2 {[%emt 0:03:18]} 10. Nxd2 {[%emt 0:02:06]} f5 {[%emt 0:00:14]} 11. Rab1 {[%emt 0:04:01]} Qe7 $146 {[%emt 0:07:02]} ({Predecessor:} 11... a5 12. a3 Qe7 {1-0 (34) Starostits,I (2441)-Kolb,M (2074) Port de Pollenca 2018}) 12. e3 {[%emt 0:05:00]} Nd7 {[%emt 0:02:39]} 13. a3 {[%emt 0:01:05]} Nf6 {[%emt 0:04:23]} 14. b4 {[%emt 0:17:13]} Bd7 {[%emt 0:04:17]} 15. b5 {[%emt 0:12:23]} Bxa3 {[%emt 0:07:30]} 16. c5 {[%emt 0:00:10]} cxb5 {[%emt 0:01:13]} 17. Nxb5 {[%emt 0:02:45]} Bxb5 {[%emt 0:00:15]} 18. Rxb5 {[%emt 0:00:06]} a5 {[%emt 0:00:43]} 19. Nf3 {[%emt 0:01:35]} Bb4 {[%emt 0:05:45]} 20. Ne5 {[%emt 0:06:53]} Ne4 {[%emt 0:15:42]} 21. Ra1 {[%emt 0:08:30]} Ra6 {[%emt 0:03:00] [#]} 22. Bf1 $1 {[%emt 0:00:46]} Rfa8 {[%emt 0:13:43]} 23. Nd3 {[%emt 0:02:27]} Qc7 {[%emt 0:10:31]} 24. Nxb4 {[%emt 0:04:16]} axb4 {[%emt 0:00:07]} 25. Rxa6 {[%emt 0:00:11]} Rxa6 {[%emt 0:00:35]} 26. Rxb4 {[%emt 0:00:25]} Ra1 {[%emt 0:00:17]} 27. Rb6 {[%emt 0:03:51]} Kf7 {[%emt 0:01:14]} 28. Qb2 {[%emt 0:00:40]} Ra7 {[%emt 0:00:17]} 29. Bd3 {[%emt 0:03:22]} Nf6 {[%emt 0:00:29]} 30. Bb5 {[%emt 0:01:37]} Ne4 {[%emt 0:00:48]} 31. Kg2 {[%emt 0:00:24]} Nf6 {[%emt 0:00:53]} 32. h3 {[%emt 0:00:23]} Ne4 {[%emt 0:00:25]} 33. Bd3 {[%emt 0:00:17]} Nf6 {[%emt 0:00:28]} 34. Be2 {[%emt 0:00:30]} Ne4 {[%emt 0:01:27]} 35. Bf3 {[%emt 0:00:29]} Nf6 {[%emt 0:00:16]} 36. Qb1 {[%emt 0:00:52]} Ke7 {[%emt 0:02:40]} 37. g4 {[%emt 0:03:20]} g6 {[%emt 0:00:24]} 38. g5 {[%emt 0:01:32]} Ne4 {[%emt 0:01:18]} 39. Bxe4 {[%emt 0:00:57]} fxe4 {[%emt 0:00:14]} 40. Qb5 {[%emt 0:03:00]} Kf7 {[%emt 0:07:31]} 41. Qe2 {[%emt 0:31:51]} Ra8 {[%emt 0:05:44]} 42. Qg4 {[%emt 0:00:00]} Qe7 {[%emt 0:02:19]} 43. Qf4+ {[%emt 0:00:00]} Kg7 $2 {[%emt 0:00:27]} (43... Kg8 $16 {is a better chance.} 44. Qf6 Qxf6 45. gxf6 Kf7) 44. Qe5+ {[%emt 0:00:00]} Kf7 {[%emt 0:00:08]} 45. h4 {[%emt 0:00:00]} (45. c6 $142 bxc6 46. Rxc6) 45... Rc8 {[%emt 0:01:38]} 46. Kg3 {[%emt 0:00:00]} Re8 {[%emt 0:05:08] [#]} 47. Kg4 $2 {[%emt 0:00:00]} (47. Qd6 $1 $18) 47... Kg8 {[%emt 0:05:06]} 48. Qf6 {[%emt 0:00:00]} Qd7 {[%emt 0:00:14]} 49. Kg3 {[%emt 0:00:00]} Qc7+ {[%emt 0:02:10]} 50. Kg2 {[%emt 0:00:29]} Qd7 {[%emt 0:01:17]} 51. Rd6 {[%emt 0:00:09]} Qb5 {[%emt 0:03:38]} 52. Kh2 {[%emt 0:01:29]} Qa4 $18 {[%emt 0:00:39]} 53. c6 {[%emt 0:00:25]} Rf8 {[%emt 0:03:27]} 54. Rd8 {[%emt 0:01:27]} Rxd8 {[%emt 0:00:47]} 55. Qxd8+ {[%emt 0:00:09]} Kg7 {[%emt 0:00:07]} 56. Qc7+ {[%emt 0:00:14]} 1-0